bitfinex/quotes_BTCUSD_20221001
["timestamp","ask_amount","ask_price","bid_price","bid_amount"]
[1664658149421,0.429783,19263.0,19262.0,0.01300544]
[1664658149668,0.504533,19263.0,19262.0,0.01300544]
[1664658150143,0.504533,19263.0,19262.0,0.03500544]
[1664658150602,0.429783,19263.0,19262.0,0.03500544]
[1664658151071,0.689347,19263.0,19262.0,0.03500544]
[1664658151302,0.689347,19263.0,19262.0,0.01300544]
[1664658151532,1.13400311,19263.0,19262.0,0.01300544]
[1664658151751,1.29827191,19263.0,19262.0,0.01300544]
[1664658152203,0.9283658,19263.0,19262.0,0.03500544]
[1664658152649,1.0031158,19263.0,19262.0,0.03500544]
[1664658153373,0.9283658,19263.0,19262.0,0.01300544]
[1664658154262,0.9283658,19263.0,19262.0,0.03500544]
[1664658154775,1.0031158,19263.0,19262.0,0.03500544]
[1664658154996,0.9283658,19263.0,19262.0,0.03500544]
[1664658155436,0.9283658,19263.0,19262.0,0.01300544]
[1664658155652,1.0031158,19263.0,19262.0,0.01300544]
[1664658155863,0.9283658,19263.0,19262.0,0.01300544]
[1664658156125,0.9283658,19263.0,19262.0,0.03500544]
[1664658156810,0.764097,19263.0,19262.0,0.03500544]
[1664658157060,1.00311659,19263.0,19262.0,0.03500544]
[1664658159344,1.00311659,19263.0,19262.0,0.01300544]
[1664658159575,0.92836659,19263.0,19262.0,0.01300544]
[1664658160288,0.92836659,19263.0,19262.0,0.03500544]
[1664658160505,3.50276295,19263.0,19262.0,0.03500544]
[1664658160802,1.00311659,19263.0,19262.0,0.03500544]
[1664658161028,0.92836659,19263.0,19262.0,0.03500544]
[1664658161515,0.92836659,19263.0,19262.0,0.01300544]
[1664658162245,0.689347,19263.0,19262.0,0.03500544]
[1664658162460,0.9283645,19263.0,19262.0,0.03500544]
[1664658163874,0.9283645,19263.0,19262.0,0.01300544]
[1664658164098,0.9283645,19263.0,19262.0,0.03500544]
[1664658164934,1.0031145,19263.0,19262.0,0.03500544]
[1664658165395,1.0031145,19263.0,19262.0,0.01300544]
[1664658165611,0.9283645,19263.0,19262.0,0.01300544]
[1664658166041,0.9283645,19263.0,19262.0,0.03500544]
[1664658166261,1.0031145,19263.0,19262.0,0.03500544]
[1664658166467,0.9283645,19263.0,19262.0,0.03500544]
[1664658167005,1.0031145,19263.0,19262.0,0.03500544]
[1664658167215,0.9283645,19263.0,19262.0,0.03500544]
[1664658167527,0.689347,19263.0,19262.0,0.01300544]
[1664658167755,0.92836752,19263.0,19262.0,0.01300544]
[1664658168216,1.00311752,19263.0,19262.0,0.03500544]
[1664658168473,0.92836752,19263.0,19262.0,0.03500544]
[1664658169303,0.92836752,19263.0,19262.0,0.01300544]
[1664658169954,1.00311752,19263.0,19262.0,0.01300544]
[1664658170166,1.04384719,19263.0,19262.0,0.03500544]
[1664658170402,0.96909719,19263.0,19262.0,0.03500544]
[1664658170640,1.04384719,19263.0,19262.0,0.03500544]
[1664658170860,0.96909719,19263.0,19262.0,0.03500544]
[1664658171299,1.04384719,19263.0,19262.0,0.03500544]
[1664658171735,0.96909719,19263.0,19262.0,0.01300544]
[1664658172215,1.48822619,19263.0,19262.0,0.03700544]
[1664658172671,1.24920567,19263.0,19262.0,0.03700544]
[1664658172888,1.48822739,19263.0,19262.0,0.03700544]
[1664658173815,1.56297739,19263.0,19262.0,0.01300544]
[1664658174045,1.48822739,19263.0,19262.0,0.01300544]
[1664658174577,1.54932414,19263.0,19262.0,0.03700544]
[1664658175227,1.62407414,19263.0,19262.0,0.03700544]
[1664658175362,1.62407414,19263.0,19262.0,0.01300544]
[1664658175754,1.54932414,19263.0,19262.0,0.01300544]
[1664658175967,1.62407414,19263.0,19262.0,0.01300544]
[1664658176142,1.62407414,19263.0,19262.0,0.03700544]
[1664658176369,1.50859447,19263.0,19262.0,0.03700544]
[1664658176582,1.54930019,19263.0,19262.0,0.03700544]
[1664658177408,1.62405019,19263.0,19262.0,0.01300544]
[1664658177621,1.54930019,19263.0,19262.0,0.01300544]
[1664658177856,1.59005908,19263.0,19262.0,0.01300544]
[1664658178082,1.35103736,19263.0,19262.0,0.03700544]
[1664658178302,1.5085939,19263.0,19262.0,0.03700544]
[1664658179441,1.54930468,19263.0,19262.0,0.01300544]
[1664658179672,1.54930442,19263.0,19262.0,0.01300544]
[1664658180187,1.54930442,19263.0,19262.0,0.03700544]
[1664658180852,1.59005851,19263.0,19262.0,0.03700544]
[1664658181285,1.59005851,19263.0,19262.0,0.01300544]
[1664658182168,1.59005851,19263.0,19262.0,0.03700544]
[1664658183508,1.35103736,19263.0,19262.0,0.01300544]
[1664658183752,1.59005712,19263.0,19262.0,0.01300544]
[1664658184251,1.59005712,19263.0,19262.0,0.03700544]
[1664658184456,1.54930481,19263.0,19262.0,0.03700544]
[1664658184629,1.59005712,19263.0,19262.0,0.03700544]
[1664658184840,1.66480712,19263.0,19262.0,0.03700544]
[1664658185079,1.59005712,19263.0,19262.0,0.03700544]
[1664658185484,1.59005712,19263.0,19262.0,0.01300544]
[1664658186218,1.59005712,19263.0,19262.0,0.03700544]
[1664658186680,1.54930496,19263.0,19262.0,0.03700544]
[1664658187112,1.50859251,19263.0,19262.0,0.03700544]
[1664658187617,1.50859251,19263.0,19262.0,0.01300544]
[1664658187827,1.59005712,19263.0,19262.0,0.01300544]
[1664658188365,1.50859251,19263.0,19262.0,0.03700544]
[1664658188707,1.26957275,19263.0,19262.0,0.03700544]
[1664658188999,1.54930766,19263.0,19262.0,0.03700544]
[1664658189386,1.54930766,19263.0,19262.0,0.01300544]
[1664658189596,1.50859374,19263.0,19262.0,0.01300544]
[1664658189884,1.24930776,19263.0,19262.0,0.01300544]
[1664658190319,1.54930776,19263.0,19262.0,0.03900544]
[1664658190543,1.5493091,19263.0,19262.0,0.03900544]
[1664658191636,1.2493091,19263.0,19262.0,0.01300544]
[1664658191852,1.5493091,19263.0,19262.0,0.01300544]
[1664658192304,1.5493091,19263.0,19262.0,0.03900544]
[1664658193501,1.5493091,19263.0,19262.0,0.01300544]
[1664658193935,1.50859374,19263.0,19262.0,0.01300544]
[1664658194188,1.31028937,19263.0,19262.0,0.01300544]
[1664658194400,1.26957275,19263.0,19262.0,0.03700544]
[1664658194622,1.31028926,19263.0,19262.0,0.03700544]
[1664658195543,1.31028926,19263.0,19262.0,0.01300544]
[1664658195967,1.01028926,19263.0,19262.0,0.01300544]
[1664658196430,1.01028926,19263.0,19262.0,0.03700544]
[1664658196629,0.94919251,19263.0,19262.0,0.03700544]
[1664658197018,1.01028926,19263.0,19262.0,0.03700544]
[1664658197244,0.94919251,19263.0,19262.0,0.03700544]
[1664658197461,0.94919251,19263.0,19262.0,0.01300544]
[1664658198201,0.94919251,19263.0,19262.0,0.03500544]
[1664658198384,1.01028926,19263.0,19262.0,0.03500544]
[1664658199126,0.94919251,19263.0,19262.0,0.03500544]
[1664658199347,1.01028926,19263.0,19262.0,0.03500544]
[1664658199558,0.94919251,19263.0,19262.0,0.01300544]
[1664658199990,1.01028926,19263.0,19262.0,0.01300544]
[1664658200338,0.94919251,19263.0,19262.0,0.03700544]
[1664658200559,1.01028926,19263.0,19262.0,0.03700544]
[1664658201141,1.31028926,19263.0,19262.0,0.03700544]
[1664658201565,1.31028926,19263.0,19262.0,0.01300544]
[1664658202233,1.31028926,19263.0,19262.0,0.03700544]
[1664658202578,0.94919251,19263.0,19262.0,0.03700544]
[1664658203537,1.31028926,19263.0,19262.0,0.01300544]
[1664658203784,1.42576299,19263.0,19262.0,0.01300544]
[1664658204013,0.94918876,19263.0,19262.0,0.01300544]
[1664658204244,0.94918876,19263.0,19262.0,0.03491924]
[1664658204389,0.94918876,19263.0,19262.0,0.02991924]
[1664658205579,0.94918876,19263.0,19262.0,0.00791924]
[1664658206024,0.908476,19263.0,19262.0,0.00791924]
[1664658206280,0.389347,19263.0,19262.0,0.11493924]
[1664658206482,0.389347,19263.0,19262.0,0.08526924]
[1664658207906,0.389347,19263.0,19262.0,0.00791924]
[1664658208362,0.389347,19263.0,19262.0,0.03391924]
[1664658209579,0.389347,19263.0,19262.0,0.00791924]
[1664658210371,0.129783,19263.0,19262.0,0.51268056]
[1664658210933,0.129783,19263.0,19262.0,0.15471956]
[1664658211145,0.129783,19263.0,19262.0,0.08526924]
[1664658211583,0.129783,19263.0,19262.0,0.05926924]
[1664658212026,0.129783,19263.0,19262.0,0.00791924]
[1664658212296,0.129783,19263.0,19262.0,0.03991924]
[1664658213493,0.129783,19263.0,19262.0,0.00791924]
[1664658214320,0.129783,19263.0,19262.0,0.03391924]
[1664658216069,0.129783,19263.0,19262.0,0.00791924]
[1664658216278,0.129783,19263.0,19262.0,0.03391924]
[1664658217701,0.129783,19263.0,19262.0,0.00791924]
[1664658218140,0.129783,19263.0,19262.0,0.13093648]
[1664658218359,0.129783,19263.0,19262.0,0.51489748]
[1664658218573,0.259452,19264.0,19263.0,0.457961]
[1664658218791,0.259452,19264.0,19263.0,0.1]
[1664658219020,0.519003,19264.0,19263.0,0.10791924]
[1664658220052,0.519003,19264.0,19263.0,0.46588024]
[1664658220263,0.519003,19264.0,19263.0,0.12891924]
[1664658220970,0.259452,19264.0,19263.0,0.12891924]
[1664658221182,0.259452,19264.0,19263.0,0.48688024]
[1664658221404,0.259452,19264.0,19263.0,0.12891924]
[1664658221853,0.259452,19264.0,19263.0,0.10791924]
[1664658222542,0.259452,19264.0,19263.0,0.12891924]
[1664658223676,0.259452,19264.0,19263.0,0.10791924]
[1664658224300,0.78267868,19265.0,19263.0,0.48688024]
[1664658224519,0.78267868,19265.0,19264.0,0.1]
[1664658224893,0.78267768,19265.0,19264.0,0.10791924]
[1664658225119,0.74196492,19265.0,19264.0,0.10791924]
[1664658226381,0.78267768,19265.0,19264.0,0.12391924]
[1664658226800,0.74196492,19265.0,19264.0,0.12391924]
[1664658227458,0.518984,19265.0,19264.0,0.12391924]
[1664658227672,0.518984,19265.0,19264.0,0.10791924]
[1664658228308,0.518984,19265.0,19264.0,0.12391924]
[1664658229559,0.518984,19265.0,19264.0,0.10791924]
[1664658230415,0.518984,19265.0,19264.0,0.12391924]
[1664658231545,0.55969676,19265.0,19264.0,0.12391924]
[1664658231764,0.518984,19265.0,19264.0,0.10791924]
[1664658232534,0.518984,19265.0,19264.0,0.12391924]
[1664658233721,0.518984,19265.0,19264.0,0.10791924]
[1664658234492,0.518984,19265.0,19264.0,0.12691924]
[1664658235650,0.63444676,19265.0,19264.0,0.10791924]
[1664658235868,0.83340288,19265.0,19264.0,0.10791924]
[1664658236088,0.9975805,19265.0,19264.0,0.00791924]
[1664658236314,1.13340288,19265.0,19264.0,0.00791924]
[1664658236528,1.13340288,19265.0,19264.0,0.02391924]
[1664658237025,1.05865288,19265.0,19264.0,0.02391924]
[1664658237232,1.29765334,19265.0,19264.0,0.02391924]
[1664658237682,1.29765334,19265.0,19264.0,0.00791924]
[1664658238525,1.23658096,19265.0,19264.0,0.02491924]
[1664658238745,1.17344722,19265.0,19264.0,0.02491924]
[1664658238961,1.09869722,19265.0,19264.0,0.02491924]
[1664658239360,1.2345196,19265.0,19264.0,0.02491924]
[1664658239795,1.2345196,19265.0,19264.0,0.00791924]
[1664658239995,1.27527145,19265.0,19264.0,0.00791924]
[1664658240211,1.53731263,19265.0,19264.0,0.00791924]
[1664658240417,4.16209984,19265.0,19264.0,0.02491924]
[1664658241095,0.85975908,19265.0,19264.0,0.02491924]
[1664658241729,0.85975908,19265.0,19264.0,0.00791924]
[1664658242059,0.62075862,19265.0,19264.0,0.00791924]
[1664658242278,0.85975612,19265.0,19264.0,0.00791924]
[1664658242510,0.85975612,19265.0,19264.0,0.02491924]
[1664658243605,0.85975612,19265.0,19264.0,0.00791924]
[1664658244445,0.85975612,19265.0,19264.0,0.02391924]
[1664658245824,1.37883212,19265.0,19264.0,0.00791924]
[1664658246457,1.37883212,19265.0,19264.0,0.02391924]
[1664658247330,1.13983462,19265.0,19264.0,0.02391924]
[1664658247570,1.43983462,19265.0,19264.0,0.02391924]
[1664658247804,1.43983462,19265.0,19264.0,0.00791924]
[1664658248537,1.43983462,19265.0,19264.0,0.02391924]
[1664658248974,1.09913238,19265.0,19264.0,0.02391924]
[1664658249176,1.13983636,19265.0,19264.0,0.02391924]
[1664658249310,1.09913238,19265.0,19264.0,0.02391924]
[1664658249923,1.09913238,19265.0,19264.0,0.00791924]
[1664658250134,1.214587,19265.0,19264.0,0.00791924]
[1664658250352,1.25534699,19265.0,19264.0,0.00791924]
[1664658250569,1.25534699,19265.0,19264.0,0.02391924]
[1664658250784,1.13983827,19265.0,19264.0,0.02391924]
[1664658251823,1.21458827,19265.0,19264.0,0.00791924]
[1664658252422,1.13983827,19265.0,19264.0,0.02391924]
[1664658253811,1.13983827,19265.0,19264.0,0.00791924]
[1664658254484,0.62076227,19265.0,19264.0,0.13093924]
[1664658254708,0.518984,19265.0,19264.0,0.02391924]
[1664658254948,0.55968989,19265.0,19264.0,0.02391924]
[1664658255747,0.55968989,19265.0,19264.0,0.00791924]
[1664658256389,0.55968989,19265.0,19264.0,0.02391924]
[1664658257701,0.55968989,19265.0,19264.0,0.00791924]
[1664658258096,0.518984,19265.0,19264.0,0.00791924]
[1664658258533,0.518984,19265.0,19264.0,0.02391924]
[1664658258741,0.55968989,19265.0,19264.0,0.02391924]
[1664658259460,0.518984,19265.0,19264.0,0.02391924]
[1664658259881,0.518984,19265.0,19264.0,0.00791924]
[1664658260437,0.518984,19265.0,19264.0,0.02591924]
[1664658260859,0.55968989,19265.0,19264.0,0.02591924]
[1664658261645,0.55968989,19265.0,19264.0,0.00791924]
[1664658261866,0.518984,19265.0,19264.0,0.00791924]
[1664658262661,0.518984,19265.0,19264.0,0.02591924]
[1664658263482,0.55968989,19265.0,19264.0,0.02591924]
[1664658263707,0.55968989,19265.0,19264.0,0.00791924]
[1664658264508,0.55968989,19265.0,19264.0,0.02591924]
[1664658265676,0.55968989,19265.0,19264.0,0.00791924]
[1664658266459,0.55968989,19265.0,19264.0,0.02591924]
[1664658267921,0.55968989,19265.0,19264.0,0.00791924]
[1664658268600,0.55968989,19265.0,19264.0,0.02591924]
[1664658269783,0.55968989,19265.0,19264.0,0.00791924]
[1664658270626,0.55968989,19265.0,19264.0,0.02591924]
[1664658272135,0.55968989,19265.0,19264.0,0.00791924]
[1664658272736,0.55968989,19265.0,19264.0,0.02591924]
[1664658273717,0.55968989,19265.0,19264.0,0.00791924]
[1664658274600,0.55968989,19265.0,19264.0,0.02591924]
[1664658275827,0.129668,19265.0,19264.0,0.36588024]
[1664658276047,0.129668,19265.0,19264.0,0.00791924]
[1664658276619,0.129668,19265.0,19264.0,0.02791924]
[1664658277805,0.129668,19265.0,19264.0,0.00791924]
[1664658278638,0.129668,19265.0,19264.0,0.02791924]
[1664658279132,0.259437,19265.0,19264.0,0.02791924]
[1664658279910,0.259437,19265.0,19264.0,0.00791924]
[1664658280563,0.259437,19265.0,19264.0,0.02791924]
[1664658281477,0.259437,19265.0,19264.0,0.38588024]
[1664658281698,0.259437,19265.0,19264.0,0.02791924]
[1664658281927,0.259437,19265.0,19264.0,0.00791924]
[1664658282597,0.259437,19265.0,19264.0,0.02791924]
[1664658283495,0.259437,19265.0,19264.0,0.38588024]
[1664658283647,0.259437,19265.0,19264.0,0.02791924]
[1664658283889,0.259437,19265.0,19264.0,0.00791924]
[1664658284523,0.259437,19265.0,19264.0,0.02791924]
[1664658285909,0.259437,19265.0,19264.0,0.00791924]
[1664658286806,0.259437,19265.0,19264.0,0.02791924]
[1664658287018,0.24840691,19265.0,19264.0,0.02791924]
[1664658287974,0.24840691,19265.0,19264.0,0.00791924]
[1664658288739,0.24840691,19265.0,19264.0,0.02791924]
[1664658288961,0.24840691,19265.0,19264.0,0.05468506]
[1664658289886,0.24840691,19265.0,19264.0,0.00791924]
[1664658290602,0.24840691,19265.0,19264.0,0.03091924]
[1664658291867,0.24840691,19265.0,19264.0,0.00791924]
[1664658292824,0.24840691,19265.0,19264.0,0.03091924]
[1664658294209,0.24840691,19265.0,19264.0,0.00791924]
[1664658294663,0.24840691,19265.0,19264.0,0.03091924]
[1664658295869,0.24840691,19265.0,19264.0,0.00791924]
[1664658296626,0.24840691,19265.0,19264.0,0.02891924]
[1664658296826,0.24840691,19265.0,19264.0,0.05778506]
[1664658297998,0.24840691,19265.0,19264.0,0.03678506]
[1664658298655,0.24840691,19265.0,19264.0,0.41574606]
[1664658299095,0.24840691,19265.0,19264.0,0.05778506]
[1664658299533,0.24840691,19265.0,19264.0,0.02891924]
[1664658299915,0.24840691,19265.0,19264.0,0.00791924]
[1664658300348,0.24840691,19265.0,19264.0,0.36588024]
[1664658300614,0.24840691,19265.0,19264.0,0.02891924]
[1664658301850,0.24840691,19265.0,19264.0,0.00791924]
[1664658302727,0.24840691,19265.0,19264.0,0.38688024]
[1664658302963,0.24840691,19265.0,19264.0,0.09358116]
[1664658303186,0.24840691,19265.0,19264.0,0.38688024]
[1664658304073,0.24840691,19265.0,19264.0,0.36588024]
[1664658304518,0.24840691,19265.0,19264.0,0.00791924]
[1664658304739,0.24840691,19265.0,19264.0,0.02891924]
[1664658304967,0.11863791,19265.0,19264.0,0.38688024]
[1664658305196,0.11863791,19265.0,19264.0,0.43855526]
[1664658305411,0.11863791,19265.0,19264.0,0.08059426]
[1664658305922,0.63517765,19266.0,19264.0,0.05959426]
[1664658306148,0.63517765,19266.0,19264.0,0.18945726]
[1664658306149,0.63517665,19266.0,19264.0,0.18945726]
[1664658306368,0.63517665,19266.0,19265.0,0.00791924]
[1664658308349,2.47414142,19266.0,19265.0,0.00791924]
[1664658308572,2.47414142,19266.0,19265.0,0.02383448]
[1664658308573,3.09601897,19266.0,19265.0,0.02383448]
[1664658308805,3.09601897,19266.0,19260.0,0.51173144]
[1664658308806,0.05,19261.0,19260.0,0.51173144]
[1664658309025,0.16824678,19261.0,19258.0,0.64163744]
[1664658309257,0.16824678,19261.0,19260.0,0.357961]
[1664658309258,0.91614782,19261.0,19260.0,0.357961]
[1664658309538,0.91614782,19261.0,19257.0,1.3104]
[1664658309539,2.29383316,19261.0,19257.0,0.6104]
[1664658309757,2.29383316,19261.0,19256.0,1.19495481]
[1664658309758,0.78904516,19260.0,19258.0,0.357961]
[1664658309980,0.32079838,19259.0,19256.0,1.19495481]
[1664658310193,0.16824678,19259.0,19256.0,1.19495481]
[1664658310406,0.32079838,19259.0,19257.0,0.357961]
[1664658310627,0.40377395,19259.0,19256.0,1.17395481]
[1664658310879,0.08297557,19259.0,19257.0,0.357961]
[1664658311095,0.08297557,19259.0,19256.0,1.17395481]
[1664658311314,0.08297557,19259.0,19257.0,0.357961]
[1664658311555,0.08297557,19259.0,19256.0,1.15219241]
[1664658311785,0.08297557,19259.0,19257.0,0.357961]
[1664658311999,0.08297557,19259.0,19256.0,1.07319241]
[1664658312652,0.21278557,19259.0,19256.0,1.09319241]
[1664658313372,0.012981,19258.0,19256.0,1.09319241]
[1664658313600,0.012981,19258.0,19257.0,0.357961]
[1664658313816,0.142797,19258.0,19256.0,1.07319241]
[1664658314043,0.402429,19258.0,19257.0,0.357961]
[1664658314730,0.402429,19258.0,19257.0,0.017]
[1664658316101,0.402429,19258.0,19257.0,0.374961]
[1664658316327,0.402429,19258.0,19257.0,0.357961]
[1664658316536,0.402429,19258.0,19256.0,1.07319241]
[1664658316752,0.402429,19258.0,19257.0,0.374961]
[1664658317320,0.402429,19258.0,19257.0,0.017]
[1664658317983,0.402429,19258.0,19254.0,1.49663497]
[1664658318213,0.55769478,19258.0,19255.0,0.86969244]
[1664658318444,0.389448,19258.0,19256.0,0.357961]
[1664658318659,0.389448,19258.0,19255.0,0.51173144]
[1664658318877,0.389448,19258.0,19256.0,0.357961]
[1664658319101,0.389448,19258.0,19257.0,0.357961]
[1664658319253,0.389448,19258.0,19255.0,0.54073144]
[1664658319478,0.389448,19258.0,19256.0,0.357961]
[1664658319798,0.389448,19258.0,19257.0,0.357961]
[1664658320012,0.389448,19258.0,19255.0,0.51173144]
[1664658320225,0.389448,19258.0,19256.0,0.357961]
[1664658320449,0.389448,19258.0,19257.0,0.357961]
[1664658320669,0.389448,19258.0,19255.0,0.51173144]
[1664658320888,0.389448,19258.0,19256.0,0.357961]
[1664658321177,0.389448,19258.0,19257.0,0.357961]
[1664658321388,0.389448,19258.0,19255.0,0.54073144]
[1664658321603,0.389448,19258.0,19256.0,0.357961]
[1664658321813,0.389448,19258.0,19257.0,0.357961]
[1664658322027,0.389448,19258.0,19255.0,0.51173144]
[1664658322256,0.389448,19258.0,19256.0,0.357961]
[1664658322515,0.259524,19259.0,19257.0,0.357961]
[1664658322743,0.259524,19259.0,19258.0,0.357961]
[1664658322969,0.58032238,19259.0,19255.0,1.57065644]
[1664658323195,0.58032238,19259.0,19256.0,0.357961]
[1664658323196,0.61875716,19259.0,19256.0,0.357961]
[1664658323416,0.79206685,19259.0,19257.0,0.357961]
[1664658323649,0.92188085,19259.0,19255.0,1.57065644]
[1664658323853,0.76932925,19259.0,19256.0,0.357961]
[1664658324103,0.60108247,19259.0,19255.0,1.54165644]
[1664658324353,0.76932925,19259.0,19255.0,1.74649577]
[1664658324576,0.23906232,19260.0,19256.0,0.50402647]
[1664658324803,0.129813,19259.0,19256.0,0.3509048]
[1664658325074,0.129813,19259.0,19256.0,0.14606547]
[1664658325301,0.71378633,19259.0,19256.0,0.14606547]
[1664658325529,0.93486755,19259.0,19256.0,0.14606547]
[1664658325757,0.54543655,19259.0,19256.0,0.14606547]
[1664658325972,0.80505455,19259.0,19256.0,0.14606547]
[1664658326174,0.80515855,19259.0,19256.0,0.14606547]
[1664658326444,0.48436017,19259.0,19257.0,0.357961]
[1664658326660,0.80515855,19259.0,19256.0,0.14606547]
[1664658326872,0.48436017,19259.0,19256.0,0.16206547]
[1664658327803,0.80515855,19259.0,19256.0,0.16206547]
[1664658328024,0.48436017,19259.0,19256.0,0.14606547]
[1664658328247,0.389432,19259.0,19256.0,0.14606547]
[1664658328402,0.389432,19259.0,19257.0,0.357961]
[1664658328614,0.389432,19259.0,19256.0,0.14606547]
[1664658328850,0.389432,19259.0,19256.0,0.16206547]
[1664658329984,0.389432,19259.0,19256.0,0.14606547]
[1664658330767,0.389432,19259.0,19256.0,0.16206547]
[1664658331855,0.389432,19259.0,19256.0,0.161994]
[1664658332666,0.389432,19259.0,19256.0,0.145994]
[1664658332877,0.389432,19259.0,19256.0,0.161994]
[1664658333396,0.04103039,19257.0,19256.0,0.161994]
[1664658333610,0.04103039,19257.0,19256.0,0.519955]
[1664658333830,0.04103039,19257.0,19256.0,0.161994]
[1664658334042,0.04103039,19257.0,19256.0,0.503955]
[1664658334920,0.04103039,19257.0,19256.0,0.519955]
[1664658335789,0.04103039,19257.0,19256.0,0.39010947]
[1664658336008,0.04103039,19257.0,19256.0,0.37410947]
[1664658336971,0.04103039,19257.0,19256.0,0.39010947]
[1664658338104,0.04103039,19257.0,19256.0,0.37410947]
[1664658338325,0.04103039,19257.0,19256.0,0.01614847]
[1664658338569,0.04103039,19257.0,19256.0,0.37410947]
[1664658338783,0.04103039,19257.0,19256.0,0.38910947]
[1664658340114,0.04103039,19257.0,19256.0,0.37410947]
[1664658340341,0.04103039,19257.0,19256.0,0.01614847]
[1664658340727,0.04103039,19257.0,19256.0,0.39010947]
[1664658342168,0.04103039,19257.0,19256.0,0.37410947]
[1664658342913,0.04103039,19257.0,19256.0,0.39010947]
[1664658343536,0.04103039,19257.0,19256.0,0.03214847]
[1664658343993,0.04103039,19257.0,19256.0,0.39010947]
[1664658344246,0.04103039,19257.0,19256.0,0.01614847]
[1664658344477,0.04103039,19257.0,19256.0,0.37410947]
[1664658344705,0.04103039,19257.0,19256.0,0.01614847]
[1664658344920,0.04103039,19257.0,19256.0,0.03214847]
[1664658345354,0.04103039,19257.0,19256.0,0.39010947]
[1664658346091,0.04103039,19257.0,19256.0,0.01614847]
[1664658346541,0.04103039,19257.0,19256.0,0.37410947]
[1664658347007,0.04103039,19257.0,19256.0,0.39010947]
[1664658348332,0.04103039,19257.0,19256.0,0.37410947]
[1664658348994,0.04103039,19257.0,19256.0,0.03214847]
[1664658349462,0.04103039,19257.0,19256.0,0.39010947]
[1664658350100,0.04103039,19257.0,19256.0,0.37410947]
[1664658350318,0.04103039,19257.0,19256.0,0.01614847]
[1664658350767,0.04103039,19257.0,19256.0,0.37410947]
[1664658350980,0.04103039,19257.0,19256.0,0.39010947]
[1664658351207,0.04103039,19257.0,19256.0,0.03214847]
[1664658351700,0.04103039,19257.0,19256.0,0.39010947]
[1664658352190,0.04103039,19257.0,19256.0,0.37410947]
[1664658352757,0.04103039,19257.0,19256.0,0.39010947]
[1664658352967,0.04103039,19257.0,19256.0,0.03214847]
[1664658353282,0.04103039,19257.0,19256.0,0.39010947]
[1664658353542,0.04103039,19257.0,19256.0,0.03214847]
[1664658353864,0.04103039,19257.0,19256.0,0.39010947]
[1664658354081,0.04103039,19257.0,19256.0,0.01614847]
[1664658355062,0.04103039,19257.0,19256.0,0.03214847]
[1664658356184,0.04103039,19257.0,19256.0,0.01614847]
[1664658356884,0.04103039,19257.0,19256.0,0.39010947]
[1664658357130,0.04103039,19257.0,19256.0,0.03214847]
[1664658357804,0.04103039,19257.0,19256.0,0.39010947]
[1664658358023,0.04103039,19257.0,19256.0,0.03214847]
[1664658358219,0.04103039,19257.0,19256.0,0.01614847]
[1664658358788,0.04103039,19257.0,19256.0,0.03214847]
[1664658360278,0.04103039,19257.0,19256.0,0.01614847]
[1664658360958,0.04103039,19257.0,19256.0,0.03214847]
[1664658362365,0.04103039,19257.0,19256.0,0.01614847]
[1664658362920,0.04103039,19257.0,19256.0,0.39010947]
[1664658363378,0.04103039,19257.0,19256.0,0.03214847]
[1664658364297,0.04103039,19257.0,19256.0,0.01614847]
[1664658365034,0.04103039,19257.0,19256.0,0.03214847]
[1664658365618,0.01103039,19257.0,19256.0,0.03214847]
[1664658366199,0.14085239,19257.0,19256.0,0.01614847]
[1664658366797,0.14074311,19257.0,19256.0,0.01614847]
[1664658367022,0.14074311,19257.0,19256.0,0.03214847]
[1664658368058,0.14074311,19257.0,19256.0,0.01614847]
[1664658368885,0.14074311,19257.0,19256.0,0.03214847]
[1664658370169,0.14074311,19257.0,19256.0,0.01614847]
[1664658370434,0.01092111,19257.0,19256.0,0.01614847]
[1664658371051,0.01092111,19257.0,19256.0,0.03214847]
[1664658372380,0.01092111,19257.0,19256.0,0.01614847]
[1664658373045,0.01092111,19257.0,19256.0,0.03214847]
[1664658374212,0.01092111,19257.0,19256.0,0.01614847]
[1664658375021,0.01092111,19257.0,19256.0,0.03214847]
[1664658376312,0.01092111,19257.0,19256.0,0.01614847]
[1664658376926,0.01092111,19257.0,19256.0,0.03214847]
[1664658378088,0.01092111,19257.0,19256.0,0.54448216]
[1664658378316,0.01092111,19257.0,19256.0,0.67431116]
[1664658378987,0.01092111,19257.0,19256.0,0.69631116]
[1664658379204,0.01092111,19257.0,19256.0,0.95597016]
[1664658380093,0.01092111,19257.0,19256.0,0.93397016]
[1664658381008,0.01092111,19257.0,19256.0,0.95597016]
[1664658381943,0.01092111,19257.0,19256.0,0.59800916]
[1664658382128,0.01092111,19257.0,19256.0,0.93397016]
[1664658382348,0.01092111,19257.0,19256.0,0.67431116]
[1664658383113,0.01092111,19257.0,19256.0,0.69031116]
[1664658383811,0.01092111,19257.0,19256.0,0.33235016]
[1664658384253,0.01092111,19257.0,19256.0,0.67431116]
[1664658385093,0.01092111,19257.0,19256.0,0.69031116]
[1664658386653,0.01092111,19257.0,19256.0,0.67431116]
[1664658386890,0.01092111,19257.0,19256.0,0.01614847]
[1664658387116,0.01092111,19257.0,19256.0,0.39010947]
[1664658388309,0.01092111,19257.0,19256.0,0.37410947]
[1664658388899,0.01092111,19257.0,19256.0,0.01614847]
[1664658389113,0.01092111,19257.0,19256.0,0.03214847]
[1664658390201,0.01092111,19257.0,19256.0,0.01614847]
[1664658390776,0.01092111,19257.0,19256.0,0.37410947]
[1664658390994,0.01092111,19257.0,19256.0,0.03214847]
[1664658391909,0.08567111,19257.0,19256.0,0.016]
[1664658392447,0.01092111,19257.0,19255.0,1.16107744]
[1664658392686,0.01092111,19257.0,19256.0,0.357961]
[1664658392903,0.01092111,19257.0,19255.0,1.16107844]
[1664658393131,0.01092111,19257.0,19256.0,0.357961]
[1664658393362,0.01092111,19257.0,19255.0,1.18107844]
[1664658393603,0.01092111,19257.0,19256.0,0.357961]
[1664658393842,0.01092111,19257.0,19255.0,1.09145528]
[1664658394273,0.01092111,19257.0,19256.0,0.357961]
[1664658394489,0.01092111,19257.0,19255.0,1.07145528]
[1664658394966,0.01092111,19257.0,19256.0,0.357961]
[1664658395188,0.01092111,19257.0,19255.0,1.09145528]
[1664658395385,0.01092111,19257.0,19256.0,0.357961]
[1664658395620,0.01092111,19257.0,19255.0,1.09145528]
[1664658395842,0.01092111,19257.0,19256.0,0.357961]
[1664658396070,0.01092111,19257.0,19255.0,1.09145528]
[1664658396382,0.01092111,19257.0,19255.0,1.07145528]
[1664658396622,0.01092111,19257.0,19256.0,0.357961]
[1664658396849,0.01092111,19257.0,19255.0,1.07145528]
[1664658397012,0.01092111,19257.0,19256.0,0.357961]
[1664658397233,0.01092111,19257.0,19255.0,1.09145528]
[1664658397578,0.01092111,19257.0,19256.0,0.357961]
[1664658397858,0.01092111,19257.0,19255.0,1.09145528]
[1664658398080,0.01092111,19257.0,19256.0,0.357961]